[Event "Titled Tuesday Blitz January 10 Late 2023"]
[White "Mikhailov, Viacheslav"]
[Black "Bambino Filho, Antonio Carlos"]
[WhiteFideId "4187369"]
[BlackFideId "2113163"]
[WhiteElo "2428"]
[BlackElo "2144"]
[Result "1-0"]
[Round "06"]
[TimeControl "180+2"]
[Date "2023.01.10"]
[WhiteClock "0:01:12"]
[BlackClock "0:00:24"]

1. Nf3 {[%clk 0:00:00]}  c5 {[%clk 0:00:00]} 2. g3 {[%clk 0:02:58]}  Nc6 {[%clk 0:02:59]} 3. Bg2 {[%clk 0:02:56]}  g6 {[%clk 0:03:00]} 4. d4 {[%clk 0:02:56]}  cxd4 {[%clk 0:03:00]} 5. Nxd4 {[%clk 0:02:56]}  Bg7 {[%clk 0:03:00]} 6. Nxc6 {[%clk 0:02:57]}  bxc6 {[%clk 0:03:00]} 7. O-O {[%clk 0:02:56]}  Nf6 {[%clk 0:02:59]} 8. c4 {[%clk 0:02:56]}  O-O {[%clk 0:02:59]} 9. Nc3 {[%clk 0:02:56]}  Rb8 {[%clk 0:02:56]} 10. b3 {[%clk 0:02:54]}  Ne4 {[%clk 0:02:56]} 11. Nxe4 {[%clk 0:02:53]}  Bxa1 {[%clk 0:02:45]} 12. Bf4 {[%clk 0:02:52]}  e5 {[%clk 0:02:45]} 13. Qxa1 {[%clk 0:02:52]}  f6 {[%clk 0:02:34]} 14. Bh6 {[%clk 0:02:52]}  Re8 {[%clk 0:02:30]} 15. Nd6 {[%clk 0:02:44]}  Re6 {[%clk 0:02:19]} 16. c5 {[%clk 0:02:44]}  Ba6 {[%clk 0:02:20]} 17. Re1 {[%clk 0:02:44]}  Qa5 {[%clk 0:02:19]} 18. Ne4 {[%clk 0:02:40]}  Kf7 {[%clk 0:02:09]} 19. Bh3 {[%clk 0:02:16]}  Re7 {[%clk 0:01:54]} 20. Qd1 {[%clk 0:02:13]}  g5 {[%clk 0:01:44]} 21. Bf5 {[%clk 0:02:09]}  Rb4 {[%clk 0:01:27]} 22. e3 {[%clk 0:02:04]}  Rb5 {[%clk 0:01:11]} 23. Nd6+ {[%clk 0:01:39]}  Kg8 {[%clk 0:00:27]} 24. Nxb5 {[%clk 0:01:29]}  Bxb5 {[%clk 0:00:25]} 25. Kg2 {[%clk 0:01:29]}  Qb4 {[%clk 0:00:26]} 26. Qd6 {[%clk 0:01:16]}  Qxe1 {[%clk 0:00:24]} 27. Qb8+ {[%clk 0:01:12]} 1-0


[Site "https://www.chess.com"]

[Event "Titled Tuesday Blitz January 10 Late 2023"]
[White "Ansh M Shah"]
[Black "Leiva, Gianmarco"]
[WhiteFideId "25033379"]
[BlackFideId "3804399"]
[WhiteElo "2171"]
[BlackElo "2392"]
[Result "1-0"]
[Round "06"]
[TimeControl "180+2"]
[Date "2023.01.10"]
[WhiteClock "0:00:18"]
[BlackClock "0:00:03"]

1. d3 {[%clk 0:00:00]}  Nf6 {[%clk 0:00:00]} 2. Nf3 {[%clk 0:02:59]}  d5 {[%clk 0:02:57]} 3. g3 {[%clk 0:02:59]}  Bg4 {[%clk 0:02:56]} 4. Bg2 {[%clk 0:02:59]}  c6 {[%clk 0:02:56]} 5. O-O {[%clk 0:03:00]}  Nbd7 {[%clk 0:02:55]} 6. c4 {[%clk 0:02:45]}  e6 {[%clk 0:02:56]} 7. b3 {[%clk 0:02:45]}  Bd6 {[%clk 0:02:31]} 8. Bb2 {[%clk 0:02:45]}  O-O {[%clk 0:02:24]} 9. h3 {[%clk 0:02:44]}  Bh5 {[%clk 0:02:23]} 10. Nbd2 {[%clk 0:02:42]}  Qe7 {[%clk 0:02:23]} 11. e4 {[%clk 0:02:39]}  dxe4 {[%clk 0:02:23]} 12. dxe4 {[%clk 0:02:37]}  Ba3 {[%clk 0:02:20]} 13. Qc2 {[%clk 0:02:35]}  Bxb2 {[%clk 0:01:14]} 14. Qxb2 {[%clk 0:02:24]}  Bxf3 {[%clk 0:01:05]} 15. Bxf3 {[%clk 0:02:25]}  e5 {[%clk 0:01:05]} 16. Rfd1 {[%clk 0:02:22]}  Nc5 {[%clk 0:00:53]} 17. b4 {[%clk 0:02:22]}  Nd3 {[%clk 0:00:52]} 18. Qc3 {[%clk 0:02:19]}  Nxb4 {[%clk 0:00:41]} 19. Rdb1 {[%clk 0:02:19]}  Na6 {[%clk 0:00:41]} 20. Nf1 {[%clk 0:02:15]}  Rfd8 {[%clk 0:00:40]} 21. Ne3 {[%clk 0:02:09]}  g6 {[%clk 0:00:33]} 22. g4 {[%clk 0:02:08]}  Nc5 {[%clk 0:00:34]} 23. Qc2 {[%clk 0:01:48]}  Ne6 {[%clk 0:00:33]} 24. h4 {[%clk 0:01:47]}  Nd7 {[%clk 0:00:31]} 25. g5 {[%clk 0:01:45]}  Ndc5 {[%clk 0:00:30]} 26. Ng4 {[%clk 0:01:45]}  Nd4 {[%clk 0:00:30]} 27. Qd1 {[%clk 0:01:43]}  h5 {[%clk 0:00:30]} 28. Nf6+ {[%clk 0:01:39]}  Kg7 {[%clk 0:00:30]} 29. Bg2 {[%clk 0:01:30]}  Ndb3 {[%clk 0:00:30]} 30. Qxd8 {[%clk 0:01:06]}  Rxd8 {[%clk 0:00:26]} 31. axb3 {[%clk 0:00:48]}  Nd3 {[%clk 0:00:25]} 32. Rxa7 {[%clk 0:00:48]}  Qc5 {[%clk 0:00:11]} 33. Ra2 {[%clk 0:00:42]}  Nf4 {[%clk 0:00:10]} 34. Bf3 {[%clk 0:00:42]}  Rd3 {[%clk 0:00:06]} 35. Ra8 {[%clk 0:00:39]}  Qf8 {[%clk 0:00:07]} 36. Rxf8 {[%clk 0:00:26]}  Kxf8 {[%clk 0:00:02]} 37. Bg2 {[%clk 0:00:24]}  Ke7 {[%clk 0:00:03]} 38. Bf1 {[%clk 0:00:18]} 1-0


[Site "https://www.chess.com"]

[Event "Titled Tuesday Blitz January 10 Late 2023"]
[White "Sourath Biswas"]
[Black "Andrews, Todd"]
[WhiteFideId "35091484"]
[BlackFideId "2012456"]
[WhiteElo "2281"]
[BlackElo "2220"]
[Result "1-0"]
[Round "06"]
[TimeControl "180+2"]
[Date "2023.01.10"]
[WhiteClock "0:01:57"]
[BlackClock "0:00:29"]

1. d4 {[%clk 0:00:00]}  Nf6 {[%clk 0:00:00]} 2. Bf4 {[%clk 0:03:00]}  c5 {[%clk 0:02:59]} 3. e3 {[%clk 0:02:57]}  e6 {[%clk 0:02:58]} 4. Nf3 {[%clk 0:02:57]}  d5 {[%clk 0:02:56]} 5. c3 {[%clk 0:02:57]}  Bd6 {[%clk 0:02:56]} 6. Bb5+ {[%clk 0:02:56]}  Nc6 {[%clk 0:02:56]} 7. Bg3 {[%clk 0:02:54]}  O-O {[%clk 0:02:56]} 8. Nbd2 {[%clk 0:02:55]}  Qe7 {[%clk 0:02:55]} 9. Bxc6 {[%clk 0:02:53]}  bxc6 {[%clk 0:02:51]} 10. Qa4 {[%clk 0:02:49]}  Bb7 {[%clk 0:02:50]} 11. Qa3 {[%clk 0:02:49]}  Nd7 {[%clk 0:02:35]} 12. Nb3 {[%clk 0:02:48]}  Bxg3 {[%clk 0:02:23]} 13. hxg3 {[%clk 0:02:46]}  e5 {[%clk 0:01:54]} 14. Nxc5 {[%clk 0:02:45]}  Nxc5 {[%clk 0:01:54]} 15. Qxc5 {[%clk 0:02:44]}  Qxc5 {[%clk 0:01:50]} 16. dxc5 {[%clk 0:02:44]}  Rfe8 {[%clk 0:01:48]} 17. Kd2 {[%clk 0:02:45]}  Ba6 {[%clk 0:01:45]} 18. b4 {[%clk 0:02:27]}  h6 {[%clk 0:01:43]} 19. Nh4 {[%clk 0:02:27]}  g6 {[%clk 0:01:41]} 20. Nf3 {[%clk 0:02:19]}  Kg7 {[%clk 0:01:37]} 21. g4 {[%clk 0:02:18]}  Bc4 {[%clk 0:01:38]} 22. g5 {[%clk 0:02:17]}  h5 {[%clk 0:01:29]} 23. a4 {[%clk 0:02:11]}  a5 {[%clk 0:01:27]} 24. Rhb1 {[%clk 0:02:12]}  Reb8 {[%clk 0:01:24]} 25. Nxe5 {[%clk 0:02:12]}  axb4 {[%clk 0:01:03]} 26. cxb4 {[%clk 0:02:12]}  Ra6 {[%clk 0:00:49]} 27. Nxc4 {[%clk 0:02:13]}  dxc4 {[%clk 0:00:49]} 28. Kc3 {[%clk 0:02:11]}  Rba8 {[%clk 0:00:50]} 29. Kxc4 {[%clk 0:02:10]}  Rxa4 {[%clk 0:00:50]} 30. Rxa4 {[%clk 0:02:05]}  Rxa4 {[%clk 0:00:49]} 31. Kb3 {[%clk 0:02:06]}  Ra7 {[%clk 0:00:50]} 32. Rd1 {[%clk 0:02:03]}  f6 {[%clk 0:00:48]} 33. gxf6+ {[%clk 0:02:03]}  Kxf6 {[%clk 0:00:46]} 34. Rd6+ {[%clk 0:02:03]}  Kf5 {[%clk 0:00:47]} 35. Rxc6 {[%clk 0:02:04]}  g5 {[%clk 0:00:46]} 36. b5 {[%clk 0:02:04]}  h4 {[%clk 0:00:46]} 37. b6 {[%clk 0:02:04]}  Ra1 {[%clk 0:00:46]} 38. Kb2 {[%clk 0:02:05]}  Ra5 {[%clk 0:00:43]} 39. Rc7 {[%clk 0:02:02]}  g4 {[%clk 0:00:42]} 40. b7 {[%clk 0:02:00]}  Rb5+ {[%clk 0:00:39]} 41. Kc3 {[%clk 0:02:00]}  h3 {[%clk 0:00:40]} 42. gxh3 {[%clk 0:01:59]}  gxh3 {[%clk 0:00:41]} 43. c6 {[%clk 0:01:59]}  Kg6 {[%clk 0:00:41]} 44. Rc8 {[%clk 0:02:00]}  h2 {[%clk 0:00:38]} 45. Rh8 {[%clk 0:01:58]}  Rc5+ {[%clk 0:00:31]} 46. Kd4 {[%clk 0:01:57]}  Rxc6 {[%clk 0:00:29]} 47. b8=Q {[%clk 0:01:57]} 1-0


[Site "https://www.chess.com"]

[Event "Titled Tuesday Blitz January 10 Late 2023"]
[White "Arencibia Monduy, Antonio"]
[Black "Korchmar, Vasiliy"]
[WhiteFideId "3507939"]
[BlackFideId "24131750"]
[WhiteElo "2122"]
[BlackElo "2438"]
[Result "0-1"]
[Round "06"]
[TimeControl "180+2"]
[Date "2023.01.10"]
[WhiteClock "0:00:04"]
[BlackClock "0:00:05"]

1. c4 {[%clk 0:00:00]}  c6 {[%clk 0:00:00]} 2. Nc3 {[%clk 0:03:00]}  d5 {[%clk 0:02:54]} 3. e3 {[%clk 0:02:59]}  Nf6 {[%clk 0:02:54]} 4. Nf3 {[%clk 0:02:59]}  e6 {[%clk 0:02:54]} 5. b3 {[%clk 0:02:59]}  Bd6 {[%clk 0:02:54]} 6. Bb2 {[%clk 0:02:58]}  O-O {[%clk 0:02:53]} 7. d4 {[%clk 0:02:58]}  Nbd7 {[%clk 0:02:53]} 8. Qc2 {[%clk 0:02:58]}  e5 {[%clk 0:02:50]} 9. dxe5 {[%clk 0:02:44]}  Nxe5 {[%clk 0:02:45]} 10. Nxe5 {[%clk 0:02:42]}  Bxe5 {[%clk 0:02:45]} 11. Rd1 {[%clk 0:02:42]}  Qe7 {[%clk 0:02:45]} 12. Be2 {[%clk 0:02:42]}  dxc4 {[%clk 0:02:15]} 13. Bxc4 {[%clk 0:02:31]}  Bg4 {[%clk 0:01:56]} 14. Be2 {[%clk 0:02:15]}  Qc5 {[%clk 0:01:56]} 15. Bxg4 {[%clk 0:02:06]}  Nxg4 {[%clk 0:01:56]} 16. h3 {[%clk 0:01:58]}  Nxe3 {[%clk 0:01:57]} 17. fxe3 {[%clk 0:01:50]}  Qxe3+ {[%clk 0:01:50]} 18. Kf1 {[%clk 0:01:49]}  Rad8 {[%clk 0:01:51]} 19. Re1 {[%clk 0:01:46]}  Qf4+ {[%clk 0:01:50]} 20. Qf2 {[%clk 0:01:40]}  Qxf2+ {[%clk 0:01:35]} 21. Kxf2 {[%clk 0:01:16]}  Rd2+ {[%clk 0:01:34]} 22. Kf1 {[%clk 0:01:16]}  Bg3 {[%clk 0:01:35]} 23. Rb1 {[%clk 0:01:11]}  Rfd8 {[%clk 0:01:13]} 24. Ne4 {[%clk 0:00:33]}  Rd1+ {[%clk 0:01:03]} 25. Rxd1 {[%clk 0:00:28]}  Rxd1+ {[%clk 0:00:32]} 26. Ke2 {[%clk 0:00:27]}  Rxh1 {[%clk 0:00:31]} 27. Nxg3 {[%clk 0:00:28]}  Rg1 {[%clk 0:00:30]} 28. Kf2 {[%clk 0:00:28]}  Rb1 {[%clk 0:00:24]} 29. Bd4 {[%clk 0:00:26]}  Rc1 {[%clk 0:00:24]} 30. Bxa7 {[%clk 0:00:25]}  Rc2+ {[%clk 0:00:21]} 31. Kf3 {[%clk 0:00:24]}  Rxa2 {[%clk 0:00:22]} 32. Bc5 {[%clk 0:00:22]}  Rb2 {[%clk 0:00:23]} 33. b4 {[%clk 0:00:21]}  Rb3+ {[%clk 0:00:19]} 34. Kf2 {[%clk 0:00:21]}  Rb2+ {[%clk 0:00:13]} 35. Kf3 {[%clk 0:00:21]}  f6 {[%clk 0:00:13]} 36. Ne4 {[%clk 0:00:20]}  Rb3+ {[%clk 0:00:09]} 37. Kf2 {[%clk 0:00:20]}  h5 {[%clk 0:00:08]} 38. Nd6 {[%clk 0:00:17]}  b6 {[%clk 0:00:08]} 39. Bxb6 {[%clk 0:00:17]}  Rxb4 {[%clk 0:00:08]} 40. Bc5 {[%clk 0:00:16]}  Rb2+ {[%clk 0:00:08]} 41. Kf3 {[%clk 0:00:17]}  Rc2 {[%clk 0:00:08]} 42. Be3 {[%clk 0:00:16]}  Kf8 {[%clk 0:00:08]} 43. g4 {[%clk 0:00:15]}  h4 {[%clk 0:00:06]} 44. Nf5 {[%clk 0:00:14]}  g5 {[%clk 0:00:03]} 45. Nd4 {[%clk 0:00:14]}  Rh2 {[%clk 0:00:03]} 46. Nxc6 {[%clk 0:00:12]}  Rxh3+ {[%clk 0:00:03]} 47. Ke4 {[%clk 0:00:11]}  Rg3 {[%clk 0:00:03]} 48. Bc5+ {[%clk 0:00:12]}  Kf7 {[%clk 0:00:02]} 49. Nd8+ {[%clk 0:00:12]}  Ke8 {[%clk 0:00:01]} 50. Ne6 {[%clk 0:00:10]}  Rxg4+ {[%clk 0:00:01]} 51. Kf5 {[%clk 0:00:09]}  Rc4 {[%clk 0:00:02]} 52. Kxf6 {[%clk 0:00:09]}  h3 {[%clk 0:00:02]} 53. Bd6 {[%clk 0:00:09]}  g4 {[%clk 0:00:03]} 54. Ng7+ {[%clk 0:00:08]}  Kd7 {[%clk 0:00:02]} 55. Be5 {[%clk 0:00:08]}  Rc2 {[%clk 0:00:02]} 56. Nf5 {[%clk 0:00:07]}  h2 {[%clk 0:00:03]} 57. Bxh2 {[%clk 0:00:05]}  Rxh2 {[%clk 0:00:03]} 58. Kg5 {[%clk 0:00:04]}  Rg2 {[%clk 0:00:04]} 59. Nh4 {[%clk 0:00:05]}  Rg1 {[%clk 0:00:03]} 60. Kf4 {[%clk 0:00:04]}  Ke6 {[%clk 0:00:03]} 61. Ke3 {[%clk 0:00:04]}  Kf6 {[%clk 0:00:02]} 62. Kf2 {[%clk 0:00:02]}  Ra1 {[%clk 0:00:02]} 63. Kg3 {[%clk 0:00:02]}  Kg5 {[%clk 0:00:02]} 64. Ng2 {[%clk 0:00:01]}  Ra3+ {[%clk 0:00:02]} 65. Kf2 {[%clk 0:00:02]}  Rb3 {[%clk 0:00:03]} 66. Kg1 {[%clk 0:00:01]}  Rb2 {[%clk 0:00:03]} 67. Kh2 {[%clk 0:00:01]}  Kh5 {[%clk 0:00:04]} 68. Kg3 {[%clk 0:00:01]}  Rb3+ {[%clk 0:00:04]} 69. Kf4 {[%clk 0:00:01]}  Rb4+ {[%clk 0:00:05]} 70. Kg3 {[%clk 0:00:01]}  Ra4 {[%clk 0:00:04]} 71. Nf4+ {[%clk 0:00:01]}  Kg5 {[%clk 0:00:05]} 72. Ng2 {[%clk 0:00:01]}  Kf5 {[%clk 0:00:06]} 73. Nh4+ {[%clk 0:00:02]}  Kg5 {[%clk 0:00:06]} 74. Ng2 {[%clk 0:00:02]}  Rd4 {[%clk 0:00:04]} 75. Kh2 {[%clk 0:00:03]}  Rd3 {[%clk 0:00:04]} 76. Kg1 {[%clk 0:00:03]}  g3 {[%clk 0:00:04]} 77. Kf1 {[%clk 0:00:03]}  Kg4 {[%clk 0:00:04]} 78. Ke2 {[%clk 0:00:03]}  Ra3 {[%clk 0:00:04]} 79. Ne3+ {[%clk 0:00:03]}  Rxe3+ {[%clk 0:00:04]} 80. Kxe3 {[%clk 0:00:03]}  Kh3 {[%clk 0:00:04]} 81. Kf3 {[%clk 0:00:04]}  Kh2 {[%clk 0:00:05]} 0-1


[Site "https://www.chess.com"]

[Event "Titled Tuesday Blitz January 10 Late 2023"]
[White "Saveliev, Alexei"]
[Black "Yashmetov, Mikhail"]
[WhiteFideId "24128546"]
[BlackFideId "24198900"]
[WhiteElo "2385"]
[BlackElo "2323"]
[Result "1-0"]
[Round "06"]
[TimeControl "180+2"]
[Date "2023.01.10"]
[WhiteClock "0:00:58"]
[BlackClock "0:00:04"]

1. c4 {[%clk 0:00:00]}  Nf6 {[%clk 0:00:00]} 2. Nc3 {[%clk 0:03:00]}  g6 {[%clk 0:02:59]} 3. e4 {[%clk 0:03:01]}  d6 {[%clk 0:02:59]} 4. d4 {[%clk 0:03:01]}  Bg7 {[%clk 0:03:00]} 5. f4 {[%clk 0:03:02]}  O-O {[%clk 0:03:00]} 6. Nf3 {[%clk 0:03:03]}  c5 {[%clk 0:03:00]} 7. d5 {[%clk 0:03:03]}  e6 {[%clk 0:03:01]} 8. Be2 {[%clk 0:03:03]}  exd5 {[%clk 0:03:01]} 9. cxd5 {[%clk 0:03:04]}  Re8 {[%clk 0:03:02]} 10. e5 {[%clk 0:03:05]}  dxe5 {[%clk 0:03:02]} 11. fxe5 {[%clk 0:03:06]}  Ng4 {[%clk 0:03:03]} 12. Bg5 {[%clk 0:03:07]}  Qb6 {[%clk 0:03:04]} 13. O-O {[%clk 0:03:07]}  Nxe5 {[%clk 0:02:43]} 14. Nxe5 {[%clk 0:03:07]}  Rxe5 {[%clk 0:02:41]} 15. Qd2 {[%clk 0:03:08]}  Bf5 {[%clk 0:02:34]} 16. Bc4 {[%clk 0:03:07]}  Nd7 {[%clk 0:02:27]} 17. d6 {[%clk 0:03:04]}  Be6 {[%clk 0:02:25]} 18. Bxe6 {[%clk 0:02:57]}  Rxe6 {[%clk 0:02:22]} 19. Be7 {[%clk 0:02:55]}  c4+ {[%clk 0:02:19]} 20. Kh1 {[%clk 0:02:55]}  Qc5 {[%clk 0:01:27]} 21. Nd5 {[%clk 0:02:55]}  Rc8 {[%clk 0:01:27]} 22. a4 {[%clk 0:02:39]}  Re5 {[%clk 0:01:10]} 23. Nc3 {[%clk 0:02:37]}  Rh5 {[%clk 0:01:06]} 24. h3 {[%clk 0:02:36]}  Qc6 {[%clk 0:01:03]} 25. Qe3 {[%clk 0:02:18]}  Ne5 {[%clk 0:00:54]} 26. Rae1 {[%clk 0:02:08]}  Nd7 {[%clk 0:00:37]} 27. Re2 {[%clk 0:02:06]}  Re8 {[%clk 0:00:33]} 28. Ref2 {[%clk 0:01:49]}  Ne5 {[%clk 0:00:27]} 29. Qg3 {[%clk 0:01:47]}  f5 {[%clk 0:00:22]} 30. Re2 {[%clk 0:01:40]}  Nf7 {[%clk 0:00:16]} 31. Rd1 {[%clk 0:01:38]}  Qd7 {[%clk 0:00:14]} 32. Qf2 {[%clk 0:01:30]}  Be5 {[%clk 0:00:13]} 33. Nd5 {[%clk 0:01:14]}  Kg7 {[%clk 0:00:13]} 34. Rxe5 {[%clk 0:01:11]}  Nxe5 {[%clk 0:00:07]} 35. Nf6 {[%clk 0:01:09]}  Qe6 {[%clk 0:00:08]} 36. Nxe8+ {[%clk 0:01:04]}  Kf7 {[%clk 0:00:05]} 37. Nf6 {[%clk 0:01:02]}  Rg5 {[%clk 0:00:04]} 38. d7 {[%clk 0:00:57]}  Nxd7 {[%clk 0:00:04]} 39. Rxd7 {[%clk 0:00:57]}  Qe4 {[%clk 0:00:04]} 40. Nxe4 {[%clk 0:00:58]} 1-0


[Site "https://www.chess.com"]

[Event "Titled Tuesday Blitz January 10 Late 2023"]
[White "TheKnightOfBosnia"]
[Black "Boder, Jan"]
[BlackFideId "16243226"]
[WhiteElo "2537"]
[BlackElo "2294"]
[Result "1-0"]
[Round "06"]
[TimeControl "180+2"]
[Date "2023.01.10"]
[WhiteClock "0:00:11"]
[BlackClock "0:00:02"]

1. e4 {[%clk 0:00:00]}  c5 {[%clk 0:00:00]} 2. Nf3 {[%clk 0:03:00]}  Nc6 {[%clk 0:02:56]} 3. d4 {[%clk 0:03:00]}  cxd4 {[%clk 0:02:55]} 4. Nxd4 {[%clk 0:03:00]}  g6 {[%clk 0:02:55]} 5. c4 {[%clk 0:03:01]}  Nf6 {[%clk 0:02:56]} 6. Nc3 {[%clk 0:03:01]}  Nxd4 {[%clk 0:02:55]} 7. Qxd4 {[%clk 0:03:00]}  d6 {[%clk 0:02:51]} 8. f3 {[%clk 0:03:00]}  Bg7 {[%clk 0:02:51]} 9. Be3 {[%clk 0:02:59]}  O-O {[%clk 0:02:51]} 10. Qd2 {[%clk 0:02:57]}  Be6 {[%clk 0:02:50]} 11. Bd3 {[%clk 0:02:58]}  Rc8 {[%clk 0:02:50]} 12. b3 {[%clk 0:02:57]}  Qa5 {[%clk 0:02:49]} 13. Nd5 {[%clk 0:02:57]}  Qxd2+ {[%clk 0:02:48]} 14. Kxd2 {[%clk 0:02:51]}  Nxd5 {[%clk 0:02:46]} 15. exd5 {[%clk 0:02:51]}  Bxa1 {[%clk 0:02:46]} 16. Rxa1 {[%clk 0:02:47]}  Bd7 {[%clk 0:02:47]} 17. Re1 {[%clk 0:02:47]}  a5 {[%clk 0:02:40]} 18. Bb6 {[%clk 0:02:44]}  Rfe8 {[%clk 0:02:32]} 19. a4 {[%clk 0:02:43]}  Ra8 {[%clk 0:02:32]} 20. f4 {[%clk 0:02:27]}  e6 {[%clk 0:02:28]} 21. dxe6 {[%clk 0:02:24]}  fxe6 {[%clk 0:02:22]} 22. Bc7 {[%clk 0:02:20]}  Bc6 {[%clk 0:02:22]} 23. g3 {[%clk 0:02:11]}  e5 {[%clk 0:02:14]} 24. fxe5 {[%clk 0:02:10]}  dxe5 {[%clk 0:01:47]} 25. Rxe5 {[%clk 0:02:01]}  Rxe5 {[%clk 0:01:47]} 26. Bxe5 {[%clk 0:01:57]}  Kf7 {[%clk 0:01:46]} 27. Kc3 {[%clk 0:01:58]}  Ke6 {[%clk 0:01:41]} 28. Bc7 {[%clk 0:01:55]}  Kd7 {[%clk 0:01:39]} 29. Bb6 {[%clk 0:01:55]}  Bf3 {[%clk 0:01:36]} 30. c5 {[%clk 0:01:55]}  Kc6 {[%clk 0:01:31]} 31. Kd4 {[%clk 0:01:47]}  Kd7 {[%clk 0:01:29]} 32. Bb5+ {[%clk 0:01:42]}  Bc6 {[%clk 0:01:23]} 33. Bc4 {[%clk 0:01:39]}  Ke7 {[%clk 0:01:22]} 34. Ke5 {[%clk 0:01:39]}  Kd7 {[%clk 0:01:10]} 35. Be6+ {[%clk 0:01:37]}  Ke7 {[%clk 0:01:05]} 36. Bc4 {[%clk 0:01:34]}  Kd7 {[%clk 0:01:03]} 37. Be6+ {[%clk 0:01:33]}  Ke7 {[%clk 0:01:03]} 38. Bc7 {[%clk 0:01:04]}  Ke8 {[%clk 0:01:02]} 39. Kf6 {[%clk 0:01:00]}  Be4 {[%clk 0:00:30]} 40. Kg7 {[%clk 0:00:58]}  Ke7 {[%clk 0:00:31]} 41. Bc4 {[%clk 0:00:51]}  h5 {[%clk 0:00:26]} 42. Bd6+ {[%clk 0:00:50]}  Kd7 {[%clk 0:00:24]} 43. Kf7 {[%clk 0:00:44]}  Re8 {[%clk 0:00:24]} 44. h4 {[%clk 0:00:42]}  Ra8 {[%clk 0:00:07]} 45. Bb5+ {[%clk 0:00:32]}  Bc6 {[%clk 0:00:07]} 46. Bxc6+ {[%clk 0:00:31]}  bxc6 {[%clk 0:00:07]} 47. Kxg6 {[%clk 0:00:27]}  Rh8 {[%clk 0:00:06]} 48. Kg5 {[%clk 0:00:27]}  Ke6 {[%clk 0:00:06]} 49. g4 {[%clk 0:00:24]}  hxg4 {[%clk 0:00:06]} 50. Kxg4 {[%clk 0:00:24]}  Rg8+ {[%clk 0:00:05]} 51. Kf4 {[%clk 0:00:25]}  Rh8 {[%clk 0:00:05]} 52. Kg5 {[%clk 0:00:25]}  Rg8+ {[%clk 0:00:04]} 53. Kf4 {[%clk 0:00:25]}  Rh8 {[%clk 0:00:04]} 54. Kg4 {[%clk 0:00:21]}  Rg8+ {[%clk 0:00:04]} 55. Kf3 {[%clk 0:00:19]}  Kf5 {[%clk 0:00:05]} 56. Bc7 {[%clk 0:00:19]}  Rh8 {[%clk 0:00:05]} 57. Bxa5 {[%clk 0:00:16]}  Rxh4 {[%clk 0:00:04]} 58. b4 {[%clk 0:00:16]}  Rh3+ {[%clk 0:00:04]} 59. Ke2 {[%clk 0:00:13]}  Ke4 {[%clk 0:00:02]} 60. b5 {[%clk 0:00:13]}  Rh2+ {[%clk 0:00:02]} 61. Kf1 {[%clk 0:00:11]}  Kd5 {[%clk 0:00:02]} 62. b6 {[%clk 0:00:11]} 1-0


[Site "https://www.chess.com"]

[Event "Titled Tuesday Blitz January 10 Late 2023"]
[White "Defend, Balint"]
[Black "Tyagi, Kushan"]
[WhiteFideId "17004853"]
[BlackFideId "2040069"]
[WhiteElo "1673"]
[BlackElo "2060"]
[Result "1/2-1/2"]
[Round "06"]
[TimeControl "180+2"]
[Date "2023.01.10"]
[WhiteClock "0:00:07"]
[BlackClock "0:00:04"]

1. e4 {[%clk 0:00:00]}  c5 {[%clk 0:00:00]} 2. Nf3 {[%clk 0:03:00]}  e6 {[%clk 0:02:57]} 3. c3 {[%clk 0:03:00]}  Nf6 {[%clk 0:02:57]} 4. e5 {[%clk 0:03:00]}  Nd5 {[%clk 0:02:56]} 5. d4 {[%clk 0:03:01]}  cxd4 {[%clk 0:02:57]} 6. cxd4 {[%clk 0:03:01]}  b6 {[%clk 0:02:57]} 7. Bc4 {[%clk 0:03:02]}  Bb7 {[%clk 0:02:58]} 8. Bxd5 {[%clk 0:03:02]}  Bxd5 {[%clk 0:02:58]} 9. Nc3 {[%clk 0:03:02]}  Bc4 {[%clk 0:02:58]} 10. d5 {[%clk 0:03:03]}  Bc5 {[%clk 0:02:52]} 11. Bg5 {[%clk 0:02:00]}  Qc8 {[%clk 0:02:38]} 12. d6 {[%clk 0:01:45]}  O-O {[%clk 0:02:22]} 13. Be7 {[%clk 0:01:14]}  Re8 {[%clk 0:02:10]} 14. Rc1 {[%clk 0:01:05]}  Nc6 {[%clk 0:02:07]} 15. Nd2 {[%clk 0:01:01]}  Bd3 {[%clk 0:01:42]} 16. Nce4 {[%clk 0:00:51]}  Nxe7 {[%clk 0:01:26]} 17. dxe7 {[%clk 0:00:34]}  Rxe7 {[%clk 0:00:46]} 18. Qf3 {[%clk 0:00:30]}  Bxe4 {[%clk 0:00:46]} 19. Qxe4 {[%clk 0:00:29]}  Qc6 {[%clk 0:00:30]} 20. Qxc6 {[%clk 0:00:30]}  dxc6 {[%clk 0:00:21]} 21. Ne4 {[%clk 0:00:20]}  Bd4 {[%clk 0:00:22]} 22. f4 {[%clk 0:00:21]}  c5 {[%clk 0:00:22]} 23. b3 {[%clk 0:00:18]}  Rd7 {[%clk 0:00:18]} 24. Ke2 {[%clk 0:00:18]}  Rad8 {[%clk 0:00:18]} 25. Rhd1 {[%clk 0:00:17]}  f5 {[%clk 0:00:18]} 26. exf6 {[%clk 0:00:17]}  gxf6 {[%clk 0:00:16]} 27. Rc2 {[%clk 0:00:16]}  Kf7 {[%clk 0:00:15]} 28. Rcd2 {[%clk 0:00:13]}  h6 {[%clk 0:00:14]} 29. Kf3 {[%clk 0:00:12]}  f5 {[%clk 0:00:14]} 30. Ng3 {[%clk 0:00:11]}  Ke7 {[%clk 0:00:13]} 31. Rd3 {[%clk 0:00:10]}  Bf6 {[%clk 0:00:13]} 32. Rxd7+ {[%clk 0:00:09]}  Rxd7 {[%clk 0:00:13]} 33. Rxd7+ {[%clk 0:00:08]}  Kxd7 {[%clk 0:00:14]} 34. Nf1 {[%clk 0:00:08]}  Kd6 {[%clk 0:00:14]} 35. Ke2 {[%clk 0:00:08]}  b5 {[%clk 0:00:14]} 36. Ne3 {[%clk 0:00:08]}  a5 {[%clk 0:00:14]} 37. Nc2 {[%clk 0:00:07]}  a4 {[%clk 0:00:13]} 38. Kd3 {[%clk 0:00:07]}  axb3 {[%clk 0:00:11]} 39. axb3 {[%clk 0:00:07]}  Kd5 {[%clk 0:00:10]} 40. Ne3+ {[%clk 0:00:08]}  Kc6 {[%clk 0:00:10]} 41. Nc2 {[%clk 0:00:08]}  Be7 {[%clk 0:00:09]} 42. g3 {[%clk 0:00:08]}  h5 {[%clk 0:00:09]} 43. Ne3 {[%clk 0:00:08]}  Bf6 {[%clk 0:00:08]} 44. Nc2 {[%clk 0:00:06]}  h4 {[%clk 0:00:07]} 45. Kd2 {[%clk 0:00:06]}  hxg3 {[%clk 0:00:07]} 46. hxg3 {[%clk 0:00:03]}  Kd5 {[%clk 0:00:06]} 47. Kd3 {[%clk 0:00:03]}  Bd4 {[%clk 0:00:07]} 48. Ne1 {[%clk 0:00:04]}  c4+ {[%clk 0:00:06]} 49. bxc4+ {[%clk 0:00:02]}  bxc4+ {[%clk 0:00:06]} 50. Ke2 {[%clk 0:00:01]}  Ke4 {[%clk 0:00:07]} 51. Nf3 {[%clk 0:00:02]}  c3 {[%clk 0:00:07]} 52. Ng5+ {[%clk 0:00:02]}  Kd5 {[%clk 0:00:05]} 53. Kd3 {[%clk 0:00:02]}  Bf2 {[%clk 0:00:06]} 54. Kxc3 {[%clk 0:00:03]}  Bxg3 {[%clk 0:00:05]} 55. Nh3 {[%clk 0:00:03]}  e5 {[%clk 0:00:05]} 56. fxe5 {[%clk 0:00:03]}  Kxe5 {[%clk 0:00:01]} 57. Kd3 {[%clk 0:00:02]}  Bh4 {[%clk 0:00:02]} 58. Ke2 {[%clk 0:00:03]}  Be7 {[%clk 0:00:03]} 59. Kf3 {[%clk 0:00:03]}  Bc5 {[%clk 0:00:03]} 60. Nf4 {[%clk 0:00:04]}  Bf8 {[%clk 0:00:04]} 61. Ng6+ {[%clk 0:00:04]}  Kf6 {[%clk 0:00:03]} 62. Nxf8 {[%clk 0:00:05]}  f4 {[%clk 0:00:03]} 63. Nh7+ {[%clk 0:00:05]}  Ke7 {[%clk 0:00:03]} 64. Ng5 {[%clk 0:00:05]}  Kd6 {[%clk 0:00:04]} 65. Ne4+ {[%clk 0:00:06]}  Kc6 {[%clk 0:00:05]} 66. Ng5 {[%clk 0:00:06]}  Kb5 {[%clk 0:00:04]} 67. Kxf4 {[%clk 0:00:07]} 1/2-1/2


[Site "https://www.chess.com"]